fUST/lending_fUST_20251230
["ID","MTS","AMOUNT","RATE_DAILY","PERIOD"]
[400046094,1767051040278,-1000.0,0.00014247,2]
[400046095,1767051040288,-891.76603869,0.00014288,2]
[400046096,1767051040297,-1931.92,0.00014374,2]
[400046098,1767051040306,-1500.0,0.00014795,2]
[400046099,1767051040318,-1500.0,0.00014795,2]
[400046100,1767051040328,-420.0,0.00014902,2]
[400046101,1767051040338,-2575.89,0.00014999,2]
[400046102,1767051040347,-908.0,0.0001501,2]
[400046103,1767051040357,-100000.0,0.00015028,2]
[400046104,1767051040366,-2000.0,0.00015342,2]
[400046105,1767051040376,-2000.0,0.00015342,2]
[400046106,1767051040387,-161.07266942,0.00015355,2]
[400046107,1767051040397,-160.0,0.0001538,2]
[400046108,1767051040406,-177.0,0.00015485,2]
[400046109,1767051040414,-3219.87,0.00015624,2]
[400046111,1767051040423,-720.0,0.00015629,2]
[400046112,1767051040432,-1181.68932168,0.00015638,2]
[400046114,1767051040441,-2500.0,0.0001589,2]
[400046116,1767051040450,-2500.0,0.0001589,2]
[400046118,1767051040460,-260.0,0.00015928,2]
[400046119,1767051040470,-3863.84,0.00016249,2]
[400046120,1767051040481,-2883.30220435,0.00016307,2]
[400046121,1767051040491,-587.0,0.00016332,2]
[400046122,1767051040503,-500.0,0.00016438,2]
[400046123,1767051040513,-500.0,0.00016438,2]
[400046124,1767051040522,-500.0,0.00016438,2]
[400046125,1767051040533,-500.0,0.00016438,2]
[400046126,1767051040543,-500.0,0.00016438,2]
[400046127,1767051040553,-500.0,0.00016438,2]
[400046128,1767051040566,-500.0,0.00016438,2]
[400046129,1767051040577,-500.0,0.00016438,2]
[400046130,1767051040586,-339.97592923,0.00016438,2]
[400046131,1767051040595,-3000.0,0.00016438,2]
[400046132,1767051040605,-3000.0,0.00016438,2]
[400046133,1767051040614,-200.0,0.00016473,2]
[400046134,1767051040623,-360.0,0.00016476,2]
[400046135,1767051040631,-4507.82,0.00016874,2]
[400046136,1767051040641,-3500.0,0.00016986,2]
[400046137,1767051040651,-3500.0,0.00016986,2]
[400046138,1767051040660,-460.0,0.00017024,2]
[400046139,1767051040669,-271.04640484,0.00017136,2]
[400046140,1767051040678,-796.8678,0.00017164,2]
[400046141,1767051040688,-864.0,0.00017192,2]
[400046142,1767051040698,-204.0,0.00017485,2]
[400046143,1767051040709,-5151.79,0.00017499,2]
[400046144,1767051040719,-4000.0,0.00017534,2]
[400046145,1767051040729,-4000.0,0.00017534,2]
[400046146,1767051040738,-560.0,0.00017572,2]
[400046147,1767051040749,-500.0,0.000177,2]
[400046148,1767051040759,-250.0,0.00017742,2]
[400046149,1767051040769,-278.40277077,0.00017842,2]
[400046150,1767051040778,-823.0,0.000179,2]
[400046151,1767051040788,-4500.0,0.00018082,2]
[400046152,1767051040798,-323.80597779,0.00018082,2]
[400046153,1767051040809,-660.0,0.0001812,2]
[400046154,1767051040819,-5795.76,0.00018124,2]
[400046155,1767051040829,-1181.68932168,0.00018596,2]
[400046156,1767051040839,-5000.0,0.0001863,2]
[400046157,1767051040849,-760.0,0.00018668,2]
[400046158,1767051040859,-6439.74,0.00018749,2]
[400046159,1767051040868,-2883.30220435,0.00018783,2]
[400046160,1767051040878,-303.05151664,0.000189,2]
[400046161,1767051040890,-1000.0,0.00018912,2]
[400046162,1767051040900,-500.0,0.00018973,2]
[400046163,1767051040911,-500.0,0.00018973,2]
[400046164,1767051040921,-481.64675475,0.00018973,2]
[400046165,1767051040933,-32469.34588868,0.00019,2]
[400046166,1767051040944,-2603.49,0.00019,2]
[400046167,1767051040955,-17928.43207283,0.00019,2]
[400046168,1767051040965,-303.05151664,0.00019089,2]
[400046169,1767051040974,-500.0,0.00019178,2]
[400046170,1767051040984,-500.0,0.00019178,2]
[400046171,1767051040994,-500.0,0.00019178,2]
[400046172,1767051041003,-500.0,0.00019178,2]
[400046173,1767051041012,-500.0,0.00019178,2]
[400046174,1767051041021,-500.0,0.00019178,2]
[400046175,1767051041031,-500.0,0.00019178,2]
[400046176,1767051041041,-500.0,0.00019178,2]
[400046177,1767051041052,-500.0,0.00019178,2]
[400046178,1767051041062,-500.0,0.00019178,2]
[400046179,1767051041072,-413.6278121,0.00019178,2]
[400046180,1767051041080,-5500.0,0.00019178,2]
[400046181,1767051041091,-12494.59,0.000192,2]
[400046182,1767051041101,-2002.32,0.000192,2]
[400046183,1767051041110,-166.47,0.000192,2]
[400046184,1767051041120,-156.97,0.000192,2]
[400046185,1767051041130,-160.2,0.000192,2]
[400046186,1767051041140,-860.0,0.00019216,2]
[400046187,1767051041149,-303.05151664,0.00019278,2]
[400046188,1767051041158,-300.0,0.00019315,2]
[400046189,1767051041168,-450.0,0.00019452,2]
[400046190,1767051041178,-303.05151664,0.00019467,2]
[400046191,1767051041188,-231.0,0.00019485,2]
[400046192,1767051041197,-600.0,0.00019589,2]
[400046193,1767051041206,-1152.0,0.00019619,2]
[400046194,1767051041215,-303.05151664,0.00019656,2]
[400046195,1767051041225,-6000.0,0.00019726,2]
[400046196,1767051041235,-706.1484877,0.00019726,2]
[400046197,1767051041245,-620.0,0.00019764,2]
[400046198,1767051041255,-454.57727495,0.00019845,4]
[400046199,1767051041264,-618.0,0.0002,2]
[400046200,1767051041273,-2000.0,0.0002,7]
[400046201,1767051041283,-454.57727495,0.00020034,4]
[400046202,1767051041292,-454.57727495,0.00020223,4]
[400046203,1767051041302,-4192.89424911,0.00020274,2]
[400046204,1767051041314,-1041.66666667,0.0002036,2]
[400046205,1767051041323,-160.0,0.0002036,2]
[400046206,1767051041332,-454.57727495,0.00020412,4]
[400046207,1767051041343,-454.61515937,0.00020601,4]
[400046208,1767051041353,-168.0,0.00020767,3]
[400046209,1767051041363,-1000.0,0.00020803,2]
[400046210,1767051041372,-244.0,0.00020803,2]
[400046211,1767051041383,-321.5,0.00020945,2]
[400046212,1767051041392,-30990.94257471,0.00021,2]
[400046213,1767051041401,-2883.30220435,0.00021259,2]
[400046214,1767051041410,-258.0,0.00021485,2]
[400046215,1767051041418,-1613.0,0.00021502,2]
[400046216,1767051041428,-1181.68932168,0.00021554,2]
[400046217,1767051041437,-2000.0,0.00021667,7]
[400046218,1767051041446,-500.0,0.00021853,2]
[400046219,1767051041456,-500.0,0.00021891,2]
[400046220,1767051041465,-500.0,0.00021917,2]
[400046221,1767051041474,-182.03330599,0.00021917,2]
[400046222,1767051041483,-500.0,0.00021917,2]
[400046223,1767051041493,-480.20810443,0.00021917,2]
[400046224,1767051041503,-178.31606175,0.00021917,2]
[400046225,1767051041512,-315.15556904,0.00021917,2]
[400046226,1767051041521,-172.9864347,0.00021917,2]
[400046227,1767051041530,-278.49623661,0.00021917,2]
[400046228,1767051041540,-249.77890113,0.00021917,2]
[400046229,1767051041550,-273.04367163,0.00021917,2]
[400046230,1767051041561,-287.89513794,0.00021917,2]
[400046231,1767051041569,-507.26557414,0.00021917,2]
[400046232,1767051041578,-472.97678502,0.00021917,2]
[400046233,1767051041587,-250.55772468,0.00021917,2]
[400046234,1767051041595,-250.41947489,0.00021917,2]
[400046235,1767051041604,-276.96921568,0.00021917,2]
[400046236,1767051041615,-429.68058131,0.00021917,2]
[400046237,1767051041625,-460.77258881,0.00021917,2]
[400046238,1767051041634,-476.97803324,0.00021917,2]
[400046239,1767051041644,-264.5012368,0.00021917,2]
[400046240,1767051041654,-185.23037313,0.00021917,2]
[400046241,1767051041664,-447.25692417,0.00021917,2]
[400046242,1767051041675,-199.94677936,0.00021917,2]
[400046243,1767051041685,-464.71326591,0.00021917,2]
[400046244,1767051041695,-413.5855328,0.00021917,2]
[400046245,1767051041704,-235.4861929,0.00021917,2]
[400046246,1767051041713,-460.71443357,0.00021917,2]
[400046247,1767051041723,-305.52353352,0.00021917,2]
[400046248,1767051041732,-288.92186598,0.00021917,2]
[400046249,1767051041743,-500.0,0.00021917,2]
[400046250,1767051041752,-398.66824558,0.00021917,2]
[400046251,1767051041762,-471.93365652,0.00021917,2]
[400046252,1767051041771,-275.42632348,0.00021917,2]
[400046253,1767051041782,-488.22762557,0.00021917,2]
[400046254,1767051041792,-378.82197893,0.00021917,2]
[400046255,1767051041801,-262.68140088,0.00021917,2]
[400046256,1767051041811,-500.0,0.00021917,2]
[400046257,1767051041820,-289.91132384,0.00021917,2]
[400046258,1767051041829,-476.5122698,0.00021917,2]
[400046259,1767051041838,-449.17785108,0.00021917,2]
[400046260,1767051041847,-463.8590192,0.00021917,2]
[400046261,1767051041856,-475.74346308,0.00021917,2]
[400046262,1767051041865,-493.05979913,0.00021917,2]
[400046263,1767051041875,-500.0,0.00021917,2]
[400046264,1767051041884,-500.0,0.00021917,2]
[400046265,1767051041894,-496.32975888,0.00021917,2]
[400046266,1767051041904,-504.68438666,0.00021917,2]
[400046267,1767051041914,-250.76892888,0.00021917,2]
[400046268,1767051041925,-354.63854456,0.00021917,2]
[400046269,1767051041937,-213.22941767,0.00021917,2]
[400046270,1767051041946,-320.1998631,0.00021917,2]
[400046271,1767051041957,-500.0,0.00021917,2]
[400046272,1767051041965,-404.40678334,0.00021917,2]
[400046273,1767051041974,-500.0,0.00021917,2]
[400046274,1767051041983,-500.0,0.00021917,2]
[400046275,1767051041992,-333.76916282,0.00021917,2]
[400046276,1767051042002,-500.0,0.00021917,2]
[400046277,1767051042011,-482.52139185,0.00021917,2]
[400046278,1767051042020,-356.83985831,0.00021917,2]
[400046279,1767051042030,-330.97691951,0.00021917,2]
[400046280,1767051042038,-494.87889882,0.00021917,2]
[400046281,1767051042048,-253.53306599,0.00021917,2]
[400046282,1767051042057,-169.7444623,0.00021917,2]
[400046283,1767051042066,-220.40876257,0.00021917,2]
[400046284,1767051042075,-1000.0,0.00021917,2]
[400046285,1767051042084,-225.77006582,0.00021917,2]
[400046286,1767051042093,-269.01977505,0.00021917,2]
[400046287,1767051042102,-500.0,0.00021917,2]
[400046288,1767051042112,-361.51873115,0.00021917,2]
[400046289,1767051042121,-177.90735047,0.00021917,2]
[400046290,1767051042130,-240.09370217,0.00021917,2]
[400046291,1767051042139,-421.70731069,0.00021917,2]
[400046292,1767051042148,-486.31154178,0.00021917,2]
[400046293,1767051042157,-294.57638844,0.00021917,2]
[400046294,1767051042167,-500.0,0.00021917,2]
[400046295,1767051042176,-243.60402505,0.00021917,2]
[400046296,1767051042185,-268.15903385,0.00021917,2]
[400046297,1767051042194,-471.93883825,0.00021917,2]
[400046298,1767051042204,-231.02510062,0.00021917,2]
[400046299,1767051042213,-488.92415349,0.00021917,2]
[400046300,1767051042222,-486.63011465,0.00021917,2]
[400046301,1767051042231,-331.17439079,0.00021917,2]
[400046302,1767051042240,-497.87877484,0.00021917,2]
[400046303,1767051042250,-227.78362903,0.00021917,2]
[400046304,1767051042260,-237.34653622,0.00021917,2]
[400046305,1767051042270,-392.55406506,0.00021917,2]
[400046306,1767051042279,-501.19543339,0.00021917,2]
[400046307,1767051042289,-209.08726671,0.00021917,2]
[400046308,1767051042299,-415.47903261,0.00021917,2]
[400046309,1767051042308,-289.73431471,0.00021917,2]
[400046310,1767051042321,-566.74984132,0.00021917,2]
[400046311,1767051042330,-194.87945958,0.00021917,2]
[400046312,1767051042340,-197.12896296,0.00021917,2]
[400046313,1767051042350,-244.31159298,0.00021917,2]
[400046314,1767051042362,-296.20535928,0.00021917,2]
[400046315,1767051042372,-246.82914686,0.00021917,2]
[400046316,1767051042382,-415.36593718,0.00021917,2]
[400046317,1767051042394,-338.3045025,0.00021917,2]
[400046318,1767051042404,-447.58246298,0.00021917,2]
[400046319,1767051042413,-199.50718454,0.00021917,2]
[400046320,1767051042423,-438.8658737,0.00021917,2]
[400046321,1767051042432,-407.47489559,0.00021917,2]
[400046322,1767051042442,-216.23520641,0.00021917,2]
[400046323,1767051042451,-210.12873179,0.00021917,2]
[400046324,1767051042461,-474.13507893,0.00021917,2]
[400046325,1767051042472,-312.71171079,0.00021917,2]
[400046326,1767051042481,-332.28303991,0.00021917,2]
[400046327,1767051042492,-500.0,0.00021917,2]
[400046328,1767051042502,-158.60174501,0.00021917,2]
[400046329,1767051042511,-174.63658247,0.00021917,2]
[400046330,1767051042520,-241.0507779,0.00021917,2]
[400046331,1767051042529,-469.4075144,0.00021917,2]
[400046332,1767051042537,-284.44472802,0.00021917,2]
[400046333,1767051042546,-490.74108158,0.00021917,2]
[400046334,1767051042556,-268.81198579,0.00021917,2]
[400046335,1767051042665,-241.72242359,0.00021917,2]
[400046336,1767051042675,-500.0,0.00021917,2]
[400046337,1767051042686,-236.94054092,0.00021917,2]
[400046338,1767051042696,-469.94931329,0.00021917,2]
[400046339,1767051042706,-407.85844134,0.00021917,2]
[400046340,1767051042715,-282.47239194,0.00021917,2]
[400046341,1767051042724,-395.12698527,0.00021917,2]
[400046342,1767051042734,-328.30768993,0.00021917,2]
[400046343,1767051042743,-239.67666409,0.00021917,2]
[400046344,1767051042753,-183.26107061,0.00021917,2]
[400046345,1767051042762,-622.69121472,0.00021917,2]
[400046346,1767051042771,-407.86933882,0.00021917,2]
[400046347,1767051042780,-243.54881724,0.00021917,2]
[400046348,1767051042789,-500.0,0.00021917,2]
[400046349,1767051042800,-260.5348626,0.00021917,2]
[400046350,1767051042811,-499.53568973,0.00021917,2]
[400046351,1767051042820,-893.04,0.00021917,2]
[400046352,1767051042829,-568.76309973,0.00021917,2]
[400046353,1767051042838,-460.17636895,0.00021917,2]
[400046354,1767051042847,-191.35979133,0.00021917,2]
[400046355,1767051042857,-500.0,0.00021917,2]
[400046357,1767051042866,-163.25279806,0.00021917,2]
[400046358,1767051042876,-201.43304431,0.00021917,2]
[400046359,1767051042886,-517.85628227,0.00021917,2]
[400046360,1767051042895,-500.0,0.00021917,2]
[400046361,1767051042906,-500.0,0.00021917,2]
[400046362,1767051042915,-333.56161096,0.00021917,2]
[400046363,1767051042925,-164.63967481,0.00021917,2]
[400046364,1767051042936,-280.07760729,0.00021917,2]
[400046365,1767051042948,-488.54130711,0.00021917,2]
[400046366,1767051042970,-314.06516067,0.00021917,2]
[400046367,1767051042980,-350.93019086,0.00021917,2]
[400046368,1767051042990,-476.00274667,0.00021917,2]
[400046369,1767051043000,-500.0,0.00021917,2]
[400046370,1767051043010,-234.48823972,0.00021917,2]
[400046371,1767051043019,-500.0,0.00021917,2]
[400046372,1767051043028,-195.74438465,0.00021917,2]
[400046373,1767051043037,-225.73156657,0.00021917,2]
[400046374,1767051043047,-494.38316648,0.00021917,2]
[400046375,1767051043056,-423.95359119,0.00021917,2]
[400046376,1767051043067,-500.0,0.00021917,2]
[400046377,1767051043077,-269.57121711,0.00021917,2]
[400046378,1767051043088,-203.24190717,0.00021917,2]
[400046379,1767051043098,-161.69636147,0.00021917,2]
[400046380,1767051043108,-262.92534721,0.00021917,2]
[400046381,1767051043117,-500.0,0.00021917,2]
[400046382,1767051043126,-251.37829777,0.00021917,2]
[400046383,1767051043135,-451.7193611,0.00021917,2]
[400046384,1767051043145,-467.99356264,0.00021917,2]
[400046385,1767051043154,-347.21846073,0.00021917,2]
[400046386,1767051043163,-540.44375359,0.00021917,2]
[400046387,1767051043173,-319.68433654,0.00021917,2]
[400046388,1767051043182,-426.86495862,0.00021917,2]
[400046389,1767051043192,-500.0,0.00021917,2]
[400046390,1767051043202,-1000.0,0.00021917,2]
[400046391,1767051043211,-406.89272503,0.00021917,2]
[400046392,1767051043220,-363.63724967,0.00021917,2]
[400046393,1767051043229,-465.19135142,0.00021917,2]
[400046394,1767051043239,-500.0,0.00021917,2]
[400046395,1767051043248,-500.0,0.00021917,2]
[400046396,1767051043257,-500.99596563,0.00021917,2]
[400046397,1767051043266,-500.0,0.00021917,2]
[400046398,1767051043276,-500.0,0.00021917,2]
[400046399,1767051043286,-491.37863043,0.00021917,2]
[400046400,1767051043295,-381.44270376,0.00021917,2]
[400046401,1767051043304,-309.43647054,0.00021917,2]
[400046402,1767051043317,-367.57,0.00021917,2]
[400046403,1767051043327,-500.0,0.00021917,2]
[400046404,1767051043336,-202.31376663,0.00021917,2]
[400046405,1767051043345,-306.74492455,0.00021917,2]
[400046406,1767051043355,-500.0,0.00021917,2]
[400046407,1767051043364,-349.44841034,0.00021917,2]
[400046408,1767051043374,-443.82116466,0.00021917,2]
[400046409,1767051043383,-500.0,0.00021917,2]
[400046410,1767051043392,-186.64044942,0.00021917,2]
[400046411,1767051043401,-500.0,0.00021917,2]
[400046412,1767051043410,-500.0,0.00021917,2]
[400046413,1767051043420,-434.87120027,0.00021917,2]
[400046414,1767051043429,-374.95658771,0.00021917,2]
[400046415,1767051043438,-268.02262656,0.00021917,2]
[400046416,1767051043447,-610.95408846,0.00021917,2]
[400046417,1767051043457,-164.72537935,0.00021917,2]
[400046418,1767051043466,-368.0625331,0.00021917,2]
[400046419,1767051043475,-186.37266074,0.00021917,2]
[400046420,1767051043484,-500.0,0.00021917,2]
[400046421,1767051043493,-420.40948282,0.00021917,2]
[400046422,1767051043502,-499.59276763,0.00021917,2]
[400046423,1767051043511,-502.9,0.00021917,2]
[400046424,1767051043520,-230.94001368,0.00021917,2]
[400046425,1767051043529,-213.06669978,0.00021917,2]
[400046426,1767051043539,-573.02929433,0.00021917,2]
[400046427,1767051043549,-206.2591174,0.00021917,2]
[400046428,1767051043559,-403.68063183,0.00021917,2]
[400046429,1767051043568,-445.80989693,0.00021917,2]
[400046430,1767051043579,-256.964808,0.00021917,2]
[400046431,1767051043589,-497.71228405,0.00021917,2]
[400046432,1767051043599,-351.67604569,0.00021917,2]
[400046433,1767051043610,-500.0,0.00021917,2]
[400046434,1767051043621,-419.21827466,0.00021917,2]
[400046435,1767051043630,-500.0,0.00021917,2]
[400046436,1767051043640,-327.42795179,0.00021917,2]
[400046437,1767051043650,-470.89585768,0.00021917,2]
[400046438,1767051043659,-217.86653738,0.00021917,2]
[400046439,1767051043670,-500.0,0.00021917,2]
[400046440,1767051043681,-561.91723085,0.00021917,2]
[400046441,1767051043692,-266.12580852,0.00021917,2]
[400046442,1767051043701,-249.9681414,0.00021917,2]
[400046443,1767051043711,-7629.338496,0.00021917,2]
[400046444,1767051043721,-538.10185872,0.00021917,2]
[400046445,1767051043730,-296.36211743,0.00021917,2]
[400046446,1767051043740,-500.0,0.00021917,2]
[400046447,1767051043750,-363.91423782,0.00021917,2]
[400046448,1767051043761,-506.42329108,0.00021917,2]
[400046449,1767051043771,-460.4,0.00021917,2]
[400046450,1767051043781,-501.89029961,0.00021917,2]
[400046451,1767051043792,-419.94997901,0.00021917,2]
[400046452,1767051043803,-281.13326683,0.00021917,2]
[400046453,1767051043813,-276.4405767,0.00021917,2]
[400046454,1767051043823,-441.60555769,0.00021917,2]
[400046455,1767051043832,-454.77996909,0.00021917,2]
[400046456,1767051043841,-314.14014211,0.00021917,2]
[400046457,1767051043850,-539.0850877,0.00021917,2]
[400046458,1767051043860,-189.07333693,0.00021917,2]
[400046459,1767051043869,-181.669416,0.00021917,2]
[400046460,1767051043879,-208.37773591,0.00021917,2]
[400046461,1767051043889,-500.0,0.00021917,2]
[400046462,1767051043900,-420.23607407,0.00021917,2]
[400046463,1767051043910,-500.0,0.00021917,2]
[400046464,1767051043919,-336.11535103,0.00021917,2]
[400046465,1767051043928,-500.0,0.00021917,2]
[400046466,1767051043938,-474.25212021,0.00021917,2]
[400046467,1767051043947,-322.21446513,0.00021917,2]
[400046468,1767051043956,-500.0,0.00021917,2]
[400046469,1767051043966,-215.83814389,0.00021917,2]
[400046470,1767051043975,-312.19237023,0.00021917,2]
[400046472,1767051043984,-449.40365979,0.00021917,2]
[400046473,1767051043993,-471.79543403,0.00021917,2]
[400046474,1767051044003,-320.64526273,0.00021917,2]
[400046475,1767051044012,-500.0,0.00021917,2]
[400046476,1767051044022,-229.88879352,0.00021917,2]
[400046477,1767051044034,-221.67463703,0.00021917,2]
[400046478,1767051044045,-634.2289801,0.00021917,2]
[400046479,1767051044056,-442.47098096,0.00021917,2]
[400046480,1767051044068,-365.10181785,0.00021917,2]
[400046481,1767051044079,-489.5909872,0.00021917,2]
[400046482,1767051044089,-485.56870717,0.00021917,2]
[400046483,1767051044099,-477.6934302,0.00021917,2]
[400046484,1767051044108,-464.38811206,0.00021917,2]
[400046485,1767051044117,-487.77119636,0.00021917,2]
[400046486,1767051044127,-500.0,0.00021917,2]
[400046487,1767051044136,-273.35091311,0.00021917,2]
[400046488,1767051044145,-333.99912007,0.00021917,2]
[400046489,1767051044155,-327.11223151,0.00021917,2]
[400046490,1767051044164,-293.1369972,0.00021917,2]
[400046491,1767051044174,-319.68950835,0.00021917,2]
[400046492,1767051044183,-240.99321294,0.00021917,2]
[400046493,1767051044193,-596.55559848,0.00021917,2]
[400046494,1767051044202,-376.73083576,0.00021917,2]
[400046495,1767051044214,-186.48937392,0.00021917,2]
[400046496,1767051044223,-500.0,0.00021917,2]
[400046497,1767051044233,-449.82536442,0.00021917,2]
[400046499,1767051044242,-203.35647701,0.00021917,2]
[400046501,1767051044251,-290.15325278,0.00021917,2]
[400046502,1767051044260,-424.72070765,0.00021917,2]
[400046506,1767051044270,-187.90611098,0.00021917,2]
[400046507,1767051044303,-465.70568753,0.00021917,2]
[400046508,1767051044316,-323.76444914,0.00021917,2]
[400046509,1767051044326,-277.6938934,0.00021917,2]
[400046510,1767051044336,-496.84809073,0.00021917,2]
[400046511,1767051044345,-278.49487928,0.00021917,2]
[400046512,1767051044354,-486.28780482,0.00021917,2]
[400046513,1767051044367,-461.88261165,0.00021917,2]
[400046514,1767051044377,-487.86563401,0.00021917,2]
[400046515,1767051044386,-1000.0,0.00021917,2]
[400046516,1767051044396,-511.89011642,0.00021917,2]
[400046517,1767051044405,-500.0,0.00021917,2]
[400046518,1767051044415,-500.0,0.00021917,2]
[400046519,1767051044424,-275.06643056,0.00021917,2]
[400046520,1767051044433,-327.50837283,0.00021917,2]
[400046521,1767051044442,-205.57380574,0.00021917,2]
[400046522,1767051044452,-500.0,0.00021917,2]
[400046523,1767051044461,-477.19724969,0.00021917,2]
[400046524,1767051044471,-214.56132807,0.00021917,2]
[400046525,1767051044482,-327.08881678,0.00021917,2]
[400046526,1767051044492,-487.22662135,0.00021917,2]
[400046527,1767051044503,-409.43073117,0.00021917,2]
[400046528,1767051044512,-372.81822915,0.00021917,2]
[400046529,1767051044522,-446.11338356,0.00021917,2]
[400046530,1767051044531,-252.80567883,0.00021917,2]
[400046531,1767051044542,-459.55961902,0.00021917,2]
[400046532,1767051044552,-370.21932107,0.00021917,2]
[400046533,1767051044562,-229.00132958,0.00021917,2]
[400046534,1767051044573,-231.26445658,0.00021917,2]
[400046535,1767051044583,-410.54004209,0.00021917,2]
[400046536,1767051044593,-360.97170815,0.00021917,2]
[400046537,1767051044603,-229.40932393,0.00021917,2]
[400046538,1767051044612,-181.60437423,0.00021917,2]
[400046539,1767051044621,-2983.50959832,0.00021917,2]
[400046540,1767051044630,-495.94160882,0.00021917,2]
[400046541,1767051044640,-224.13773528,0.00021917,2]
[400046542,1767051044651,-161.30574498,0.00021917,2]
[400046543,1767051044662,-346.19948498,0.00021917,2]
[400046544,1767051044672,-462.54292197,0.00021917,2]
[400046545,1767051044683,-426.82751742,0.00021917,2]
[400046546,1767051044694,-228.49898026,0.00021917,2]
[400046547,1767051044704,-241.60322333,0.00021917,2]
[400046548,1767051044714,-430.81365295,0.00021917,2]
[400046549,1767051044724,-488.04044067,0.00021917,2]
[400046550,1767051044735,-150.04324671,0.00021917,2]
[400046551,1767051044745,-461.30514034,0.00021917,2]
[400046552,1767051044756,-500.0,0.00021917,2]
[400046553,1767051044768,-291.75959071,0.00021917,2]
[400046554,1767051044778,-461.85768299,0.00021917,2]
[400046555,1767051044789,-232.05339944,0.00021917,2]
[400046556,1767051044799,-500.0,0.00021917,2]
[400046557,1767051044808,-248.92613817,0.00021917,2]
[400046558,1767051044818,-299.02872134,0.00021917,2]
[400046559,1767051044827,-230.99483231,0.00021917,2]
[400046560,1767051044837,-150.4825193,0.00021917,2]
[400046561,1767051044849,-500.0,0.00021917,2]
[400046562,1767051044858,-154.63759183,0.00021917,2]
[400046563,1767051044867,-288.23939754,0.00021917,2]
[400046564,1767051044877,-500.0,0.00021917,2]
[400046565,1767051044888,-253.63102759,0.00021917,2]
[400046566,1767051044899,-167.89015727,0.00021917,2]
[400046567,1767051044908,-486.66236312,0.00021917,2]
[400046568,1767051044917,-496.33962389,0.00021917,2]
[400046569,1767051044927,-349.87778429,0.00021917,2]
[400046570,1767051044938,-500.0,0.00021917,2]
[400046571,1767051044949,-184.33391286,0.00021917,2]
[400046572,1767051044960,-4821.6,0.00021917,2]
[400046573,1767051044969,-178.50369212,0.00021917,2]
[400046574,1767051044977,-370.63190419,0.00021917,2]
[400046575,1767051044988,-496.98851051,0.00021917,2]
[400046576,1767051044998,-404.6474823,0.00021917,2]
[400046577,1767051045008,-500.0,0.00021917,2]
[400046578,1767051045018,-170.04860205,0.00021917,2]
[400046579,1767051045028,-598.60330821,0.00021917,2]
[400046580,1767051045039,-188.57203443,0.00021917,2]
[400046581,1767051045048,-199.91617465,0.00021917,2]
[400046582,1767051045058,-395.71561786,0.00021917,2]
[400046583,1767051045069,-500.0,0.00021917,2]
[400046584,1767051045079,-516.4273939,0.00021917,2]
[400046585,1767051045089,-342.84833664,0.00021917,2]
[400046586,1767051045098,-512.09352173,0.00021917,2]
[400046587,1767051045108,-538.10671884,0.00021917,2]
[400046588,1767051045118,-226.63513394,0.00021917,2]
[400046589,1767051045127,-488.28774234,0.00021917,2]
[400046590,1767051045137,-500.0,0.00021917,2]
[400046591,1767051045149,-529.67556435,0.00021917,2]
[400046592,1767051045159,-273.51615063,0.00021917,2]
[400046593,1767051045169,-500.0,0.00021917,2]
[400046594,1767051045178,-500.0,0.00021917,2]
[400046595,1767051045188,-406.98709601,0.00021917,2]
[400046596,1767051045197,-500.0,0.00021917,2]
[400046597,1767051045206,-273.4647335,0.00021917,2]
[400046598,1767051045215,-500.0,0.00021917,2]
[400046599,1767051045224,-255.36194022,0.00021917,2]
[400046600,1767051045234,-320.62728522,0.00021917,2]
[400046601,1767051045243,-262.71392186,0.00021917,2]
[400046602,1767051045252,-480.0,0.00021917,2]
[400046603,1767051045261,-500.0,0.00021917,2]
[400046604,1767051045270,-208.47163128,0.00021917,2]
[400046605,1767051045280,-250.86157752,0.00021917,2]